Workbook

Sheet Instructions
B2: Binomial Expansion
B4: This tool calculates up to the x¹⁰ term of a binomial expansion,
B5: and can accept both negative and fractional powers as well as natural numbers.
B7: Coefficients are given to 4 decimal places where appropriate.
B9: Where the expansion is infinite, or contains more terms than calculated, ... Is shown after the final term calculated.
B11: The calculator contains a macro which activates the approximation function.
C12: The approximation function allows you to set a value for x and calculate, one term at a time (using the arrows),
C13: a progressive approximation for the value of the expansion.
C14: The 'true' value (Excel's direct calculation) is shown alongside
B16: The graph (which is shown when the Approximation feature is active) indicates the value of the approximation at each
B17: level of detail progressively, demonstrating the nature of convergent, divergent, oscillating and terminating sequences.
B19: The sheet is protected to avoid accidentally deleting formulae, etc.
B20: To unprotect, right click on the sheet tab and select Unprotect Sheet. There is no password.
B22: Note: | C22: If clicking the appropriate arrow doesn't show more terms when it should (the graph will also not respond)
C23: it is because the level of accuracy for calculations is not precise enough - increasing the number of decimal places
C24: will fix this.
B26: Note: | C26: Some binomial expansions converge, but relatively slowly. For instance, (1+2x)-3 passes the test for convergence,
C27: but this may not be apparent from the graph depending on the value of x chosen.
C28: It may be useful to note this, and observe what changes result in rapid convergence.
C29: In Approximation mode, a cell will return "Converges" or "Does not converge" for when the graph is unclear.

Sheet Binomial Expansion
A1: Binomial Expansion
A2: 0 | B2: ( | C2: 5 | D2: + | E2: 1 | F2: x | G2: ) | H2: -2
A4: =IF(C2=0,F2,B2&ROUND(C2,G5-5)&IF(E2<0," - "," + ")&IF(ABS(E2)=1,"",ROUND(ABS(E2),G5-5))&F2&G2) -> (5 + x) | C4: =ROUND(H2,G5-5) -> -2 | D4: ="= "&CONCATENATE(B13,C13,D13,E13,F13,G13,H13,I13,J13,K13,L13)&IF(OR($H$2>A6-1,$H$2<0,NOT($H$2=ROUND($H$2,0))),IF(A6=0,""," + ..."),"") -> = 0.04 - 0.016x + 0.0048x² - 0.00128x³ + 0.00032x⁴ - 0.0000768x⁵ + ...
C5: =IF(A2=0,"","x =") ->  | E5: 0.2 | G5: 12 | I5: (Use arrows to alter level of accuracy)
A6: 6 | B6: =G5-5&" d.p." -> 7 d.p. | F6: =IF(A2=1,A4,"") ->  | J6: =IF(A2=1,C4,"") ->  | K6: =IF(A2=1,"= "&(C2+E2*E5)^H2,"") -> 
B7: =IF(A2=1,IF(AND(H2=ROUND(H2,0),H2>0),"Terminates",IF(ABS(E5*E2/C2)<1,"(Converges)","(Does not converge)")),"") ->  | F7: =F6 ->  | J7: =J6 ->  | K7: =IF(A2=1,"≈ "&SUM(B14:L14),"") -> 
B8: ⁰ | C8: ¹ | D8: ² | E8: ³ | F8: ⁴ | G8: ⁵ | H8: ⁶ | I8: ⁷ | J8: ⁸ | K8: ⁹ | L8: ¹⁰ | N8: 0 | O8: =B16 -> 0.04 | P8: =(C2+E2*E5)^H2 -> 0.03698224852
B9: 0 | C9: 1 | D9: 2 | E9: 3 | F9: 4 | G9: 5 | H9: 6 | I9: 7 | J9: 8 | K9: 9 | L9: 10 | N9: 1 | O9: =C16 -> 0.0368 | P9: =P8 -> 0.03698224852
B10: 1 | C10: =$H$2 -> -2 | D10: =$H$2*($H$2-1)/FACT(D9) -> 3 | E10: =$H$2*($H$2-1)*($H$2-2)/FACT(E9) -> -4 | F10: =$H$2*($H$2-1)*($H$2-2)*($H$2-3)/FACT(F9) -> 5 | G10: =$H$2*($H$2-1)*($H$2-2)*($H$2-3)*($H$2-4)/FACT(G9) -> -6 | H10: =$H$2*($H$2-1)*($H$2-2)*($H$2-3)*($H$2-4)*($H$2-5)/FACT(H9) -> 7 | I10: =$H$2*($H$2-1)*($H$2-2)*($H$2-3)*($H$2-4)*($H$2-5)*($H$2-6)/FACT(I9) -> -8 | J10: =$H$2*($H$2-1)*($H$2-2)*($H$2-3)*($H$2-4)*($H$2-5)*($H$2-6)*($H$2-7)/FACT(J9) -> 9 | K10: =$H$2*($H$2-1)*($H$2-2)*($H$2-3)*($H$2-4)*($H$2-5)*($H$2-6)*($H$2-7)*($H$2-8)/FACT(K9) -> -10 | L10: =$H$2*($H$2-1)*($H$2-2)*($H$2-3)*($H$2-4)*($H$2-5)*($H$2-6)*($H$2-7)*($H$2-8)*($H$2-9)/FACT(L9) -> 11 | N10: 2 | O10: =D16 -> 0.036992 | P10: =P9 -> 0.03698224852
B11: =ROUND(B10*($C$2^($H$2-B9))*($E$2^B9),G5-5) -> 0.04 | C11: =ROUND(C10*($C$2^($H$2-C9))*($E$2^C9),G5-5) -> -0.016 | D11: =ROUND(D10*($C$2^($H$2-D9))*($E$2^D9),G5-5) -> 0.0048 | E11: =ROUND(E10*($C$2^($H$2-E9))*($E$2^E9),G5-5) -> -0.00128 | F11: =ROUND(F10*($C$2^($H$2-F9))*($E$2^F9),G5-5) -> 0.00032 | G11: =ROUND(G10*($C$2^($H$2-G9))*($E$2^G9),G5-5) -> -7.68e-05 | H11: =ROUND(H10*($C$2^($H$2-H9))*($E$2^H9),G5-5) -> 1.79e-05 | I11: =ROUND(I10*($C$2^($H$2-I9))*($E$2^I9),G5-5) -> -4.1e-06 | J11: =ROUND(J10*($C$2^($H$2-J9))*($E$2^J9),G5-5) -> 9e-07 | K11: =ROUND(K10*($C$2^($H$2-K9))*($E$2^K9),G5-5) -> -2e-07 | L11: =ROUND(L10*($C$2^($H$2-L9))*($E$2^L9),G5-5) -> 0 | N11: 3 | O11: =E16 -> 0.03698176 | P11: 0.03698224852
B12: =IF($A$6>B9,B11,0) -> 0.04 | C12: -0.016 | D12: 0.0048 | E12: -0.00128 | F12: 0.00032 | G12: -7.68e-05 | H12: 0 | I12: 0 | J12: 0 | K12: 0 | L12: 0 | N12: 4 | O12: =F16 -> 0.036982272 | P12: 0.03698224852
B13: =IF(B12=0,"",B12) -> 0.04 | C13: =IF(C12=0,"",IF(C12<0," - "," + ")&IF(ABS(C12)=1,"",ABS(C12))&"x") -> - 0.016x | D13: =IF(D12=0,"",IF(D12<0," - "," + ")&IF(ABS(D12)=1,"",ABS(D12))&"x"&D8) -> + 0.0048x² | E13: - 0.00128x³ | F13: + 0.00032x⁴ | G13: - 0.0000768x⁵ | N13: 5 | O13: =G16 -> 0.03698224742 | P13: 0.03698224852
B14: =B12*$E$5^B9 -> 0.04 | C14: =C12*$E$5^C9 -> -0.0032 | D14: 0.000192 | E14: -1.024e-05 | F14: 5.12e-07 | G14: -2.4576e-08 | H14: 0 | I14: 0 | J14: 0 | K14: 0 | L14: 0 | N14: 6 | O14: =H16 -> 0.03698224742 | P14: 0.03698224852
B15: =B14 -> 0.04 | C15: =B15+C14 -> 0.0368 | D15: 0.036992 | E15: 0.03698176 | F15: 0.036982272 | G15: 0.03698224742 | H15: 0.03698224742 | I15: 0.03698224742 | J15: 0.03698224742 | K15: 0.03698224742 | L15: 0.03698224742 | N15: 7 | O15: =I16 -> 0.03698224742 | P15: 0.03698224852
B16: =B15 -> 0.04 | C16: =C15 -> 0.0368 | D16: 0.036992 | E16: 0.03698176 | F16: 0.036982272 | G16: 0.03698224742 | H16: 0.03698224742 | I16: 0.03698224742 | J16: 0.03698224742 | K16: 0.03698224742 | L16: 0.03698224742 | N16: 8 | O16: =J16 -> 0.03698224742 | P16: 0.03698224852
N17: 9 | O17: =K16 -> 0.03698224742 | P17: 0.03698224852
N18: 10 | O18: =L16 -> 0.03698224742 | P18: 0.03698224852
